[Event "*** Titled Tuesday Blitz"]
[Site "Chess.com"]
[Date "2020.04.21"]
[Round "8"]
[White "vinniethepooh"]
[Black "BogdanDeac"]
[Result "0-1"]
[WhiteElo "2625"]
[BlackElo "2908"]
[TimeControl "180+1"]
[EndTime "11:38:52 PDT"]
[Termination "BogdanDeac won on time"]

1. d4 {[%clk 0:03:00.9]} 1... d5 {[%clk 0:02:56.5]} 2. c4 {[%clk 0:03:01.2]}
2... e6 {[%clk 0:02:55.3]} 3. Nc3 {[%clk 0:03:01.2]} 3... c6 {[%clk 0:02:54.7]}
4. Nf3 {[%clk 0:03:01.2]} 4... Nf6 {[%clk 0:02:54.2]} 5. g3 {[%clk 0:03:01.2]}
5... dxc4 {[%clk 0:02:48.5]} 6. Bg2 {[%clk 0:03:01.4]} 6... b5 {[%clk
0:02:47.3]} 7. Ne5 {[%clk 0:03:01]} 7... a6 {[%clk 0:02:47]} 8. O-O {[%clk
0:02:55.9]} 8... Bb7 {[%clk 0:02:45.9]} 9. b3 {[%clk 0:02:56.2]} 9... b4 {[%clk
0:02:44.9]} 10. Na4 {[%clk 0:02:56.6]} 10... c3 {[%clk 0:02:44.4]} 11. a3 {[%clk
0:02:57.1]} 11... a5 {[%clk 0:02:28.7]} 12. axb4 {[%clk 0:02:56.6]} 12... axb4
{[%clk 0:02:28.4]} 13. e4 {[%clk 0:02:50.4]} 13... Be7 {[%clk 0:02:21.4]} 14.
Nc4 {[%clk 0:02:36.4]} 14... Nbd7 {[%clk 0:02:09.2]} 15. Bf4 {[%clk 0:02:34.7]}
15... O-O {[%clk 0:02:05.8]} 16. Nd6 {[%clk 0:02:28.3]} 16... Ba6 {[%clk
0:02:04.6]} 17. Re1 {[%clk 0:02:23.1]} 17... Bb5 {[%clk 0:02:01.2]} 18. e5
{[%clk 0:01:43.5]} 18... Nd5 {[%clk 0:01:55.4]} 19. Bxd5 {[%clk 0:01:37.4]}
19... exd5 {[%clk 0:01:54.1]} 20. Nf5 {[%clk 0:01:36.8]} 20... g6 {[%clk
0:01:42.2]} 21. Nh6+ {[%clk 0:01:04.7]} 21... Kg7 {[%clk 0:01:36.6]} 22. Qg4
{[%clk 0:01:04.8]} 22... f5 {[%clk 0:01:22.3]} 23. exf6+ {[%clk 0:01:04.2]}
23... Nxf6 {[%clk 0:01:14.3]} 24. Qg5 {[%clk 0:00:42.2]} 24... Ne4 {[%clk
0:01:06.5]} 25. Be5+ {[%clk 0:00:34.6]} 25... Bf6 {[%clk 0:01:05]} 26. Rxe4
{[%clk 0:00:09.1]} 26... dxe4 {[%clk 0:00:59.4]} 27. Ng4 {[%clk 0:00:09.3]}
27... Bxa4 {[%clk 0:00:39.9]} 28. Nxf6 {[%clk 0:00:06.8]} 28... Rxf6 {[%clk
0:00:38.1]} 29. bxa4 {[%clk 0:00:04.1]} 29... b3 {[%clk 0:00:29]} 30. Bxf6+
{[%clk 0:00:03.3]} 30... Qxf6 {[%clk 0:00:27.7]} 31. Qc5 {[%clk 0:00:04.2]}
31... c2 {[%clk 0:00:23.7]} 32. Ra3 {[%clk 0:00:02.9]} 32... Qf8 {[%clk
0:00:16.6]} 33. Qc3 {[%clk 0:00:01.7]} 33... Qxa3 {[%clk 0:00:16.1]} 34. d5+
{[%clk 0:00:02.3]} 34... Kg8 {[%clk 0:00:15.8]} 0-1

[Event "*** Titled Tuesday Blitz"]
[Site "Chess.com"]
[Date "2020.04.21"]
[Round "8"]
[White "2L8IWUN"]
[Black "GukeshDommaraju"]
[Result "0-1"]
[WhiteElo "2465"]
[BlackElo "2699"]
[TimeControl "180+1"]
[EndTime "11:38:54 PDT"]
[Termination "GukeshDommaraju won by checkmate"]

1. Nf3 {[%clk 0:03:00.9]} 1... Nf6 {[%clk 0:02:58.8]} 2. b3 {[%clk 0:02:59.5]}
2... g6 {[%clk 0:02:57.6]} 3. Bb2 {[%clk 0:02:59.5]} 3... Bg7 {[%clk 0:02:57.8]}
4. g3 {[%clk 0:03:00.1]} 4... d6 {[%clk 0:02:57.2]} 5. Bg2 {[%clk 0:03:00.6]}
5... e5 {[%clk 0:02:57.1]} 6. O-O {[%clk 0:02:59.9]} 6... O-O {[%clk 0:02:57.2]}
7. d4 {[%clk 0:03:00.2]} 7... e4 {[%clk 0:02:56.5]} 8. Ne1 {[%clk 0:02:58.9]}
8... Re8 {[%clk 0:02:49.9]} 9. e3 {[%clk 0:02:58.4]} 9... Bg4 {[%clk 0:02:44.6]}
10. Qd2 {[%clk 0:02:47.1]} 10... Nc6 {[%clk 0:02:43.9]} 11. c4 {[%clk
0:02:34.9]} 11... Qd7 {[%clk 0:02:40.3]} 12. Nc3 {[%clk 0:02:32.3]} 12... Bh3
{[%clk 0:02:39.8]} 13. f3 {[%clk 0:02:22.3]} 13... Bxg2 {[%clk 0:02:35.7]} 14.
Kxg2 {[%clk 0:02:16.5]} 14... exf3+ {[%clk 0:02:29.3]} 15. Nxf3 {[%clk
0:02:17.4]} 15... Ne4 {[%clk 0:02:10]} 16. Nxe4 {[%clk 0:02:16.8]} 16... Rxe4
{[%clk 0:02:10.9]} 17. Rae1 {[%clk 0:02:16.1]} 17... Rae8 {[%clk 0:02:10]} 18.
Bc3 {[%clk 0:02:04.8]} 18... h6 {[%clk 0:02:03.7]} 19. d5 {[%clk 0:02:00.4]}
19... Ne5 {[%clk 0:01:57.9]} 20. Nxe5 {[%clk 0:01:57.1]} 20... Bxe5 {[%clk
0:01:57.1]} 21. Bxe5 {[%clk 0:01:53.5]} 21... R8xe5 {[%clk 0:01:56]} 22. Rf4
{[%clk 0:01:52.6]} 22... h5 {[%clk 0:01:44.2]} 23. Qd3 {[%clk 0:01:35.2]} 23...
Qe7 {[%clk 0:01:28]} 24. Kf3 {[%clk 0:01:14.5]} 24... f5 {[%clk 0:01:21.1]} 25.
h4 {[%clk 0:01:12.7]} 25... Kh7 {[%clk 0:01:09.9]} 26. Re2 {[%clk 0:01:06.2]}
26... c6 {[%clk 0:01:00.8]} 27. dxc6 {[%clk 0:01:04.5]} 27... bxc6 {[%clk
0:01:01.7]} 28. Kf2 {[%clk 0:00:59.8]} 28... d5 {[%clk 0:00:58.6]} 29. cxd5
{[%clk 0:00:59]} 29... cxd5 {[%clk 0:00:58.8]} 30. Rxe4 {[%clk 0:00:51.3]} 30...
fxe4 {[%clk 0:00:58]} 31. Qc3 {[%clk 0:00:48.4]} 31... Qf7+ {[%clk 0:00:54.3]}
32. Kg1 {[%clk 0:00:46]} 32... Rf5 {[%clk 0:00:53.8]} 33. Kg2 {[%clk 0:00:41.8]}
33... Rf1 {[%clk 0:00:51.3]} 34. Kh2 {[%clk 0:00:37.2]} 34... Rd1 {[%clk
0:00:34.7]} 35. Qe5 {[%clk 0:00:33.3]} 35... Rc1 {[%clk 0:00:20.1]} 36. Rd2
{[%clk 0:00:25]} 36... a6 {[%clk 0:00:13.7]} 37. Qxd5 {[%clk 0:00:21.2]} 37...
Qf3 {[%clk 0:00:13.6]} 38. Qd7+ {[%clk 0:00:17.6]} 38... Kh6 {[%clk 0:00:13.5]}
39. Rg2 {[%clk 0:00:17.7]} 39... Qf1 {[%clk 0:00:13.6]} 40. g4 {[%clk
0:00:13.8]} 40... Qh1+ {[%clk 0:00:11.8]} 41. Kg3 {[%clk 0:00:14]} 41... Qe1+
{[%clk 0:00:11]} 42. Kh2 {[%clk 0:00:14.2]} 42... Qxh4# {[%clk 0:00:10.8]} 0-1

[Event "*** Titled Tuesday Blitz"]
[Site "Chess.com"]
[Date "2020.04.21"]
[Round "8"]
[White "Arman_Hakemi"]
[Black "WinningButNotReally"]
[Result "1-0"]
[WhiteElo "2565"]
[BlackElo "2408"]
[TimeControl "180+1"]
[EndTime "11:38:54 PDT"]
[Termination "Arman_Hakemi won by checkmate"]

1. Nf3 {[%clk 0:03:00.9]} 1... Nf6 {[%clk 0:02:58.8]} 2. b3 {[%clk 0:03:00.3]}
2... c5 {[%clk 0:02:56]} 3. Bb2 {[%clk 0:03:00]} 3... Nc6 {[%clk 0:02:56.2]} 4.
e3 {[%clk 0:02:56.3]} 4... g6 {[%clk 0:02:53.8]} 5. c4 {[%clk 0:02:56.2]} 5...
Bg7 {[%clk 0:02:53.8]} 6. Be2 {[%clk 0:02:56.1]} 6... O-O {[%clk 0:02:53.7]} 7.
O-O {[%clk 0:02:56.5]} 7... d5 {[%clk 0:02:44.5]} 8. cxd5 {[%clk 0:02:56.1]}
8... Qxd5 {[%clk 0:02:45.4]} 9. d4 {[%clk 0:02:54]} 9... cxd4 {[%clk 0:02:41.7]}
10. Nxd4 {[%clk 0:02:54.9]} 10... Nxd4 {[%clk 0:02:23]} 11. Bxd4 {[%clk
0:02:55.8]} 11... Rd8 {[%clk 0:02:08.7]} 12. Bf3 {[%clk 0:02:52.6]} 12... Qa5
{[%clk 0:02:07.3]} 13. Qc2 {[%clk 0:02:46.1]} 13... Bf5 {[%clk 0:02:03.9]} 14.
Qb2 {[%clk 0:02:45.6]} 14... Rab8 {[%clk 0:01:52.9]} 15. Nd2 {[%clk 0:02:29.8]}
15... Rbc8 {[%clk 0:01:43.6]} 16. Nc4 {[%clk 0:02:26.9]} 16... Qa6 {[%clk
0:01:36.9]} 17. Rac1 {[%clk 0:02:16.5]} 17... b6 {[%clk 0:01:16.5]} 18. Ne5
{[%clk 0:02:12.4]} 18... Be4 {[%clk 0:00:51.1]} 19. Bxe4 {[%clk 0:02:05.1]}
19... Nxe4 {[%clk 0:00:52]} 20. Nc6 {[%clk 0:02:04.8]} 20... Bxd4 {[%clk
0:00:49.9]} 21. Nxe7+ {[%clk 0:01:17.5]} 21... Kf8 {[%clk 0:00:31.2]} 22. exd4
{[%clk 0:01:16.9]} 22... Kxe7 {[%clk 0:00:20.2]} 23. Rce1 {[%clk 0:01:14.8]}
23... Qd3 {[%clk 0:00:18.9]} 24. Qa3+ {[%clk 0:01:00.9]} 24... Kd7 {[%clk
0:00:18.4]} 25. Qxa7+ {[%clk 0:00:59.5]} 25... Rc7 {[%clk 0:00:18.7]} 26. Qxb6
{[%clk 0:00:59.1]} 26... Nd6 {[%clk 0:00:18.4]} 27. Re3 {[%clk 0:00:51.5]} 27...
Qc2 {[%clk 0:00:15.8]} 28. Rfe1 {[%clk 0:00:49.8]} 28... Nf5 {[%clk 0:00:15.9]}
29. Re5 {[%clk 0:00:28.3]} 29... Qc6 {[%clk 0:00:15.3]} 30. Qb4 {[%clk
0:00:25.6]} 30... Qd6 {[%clk 0:00:14.1]} 31. Qb5+ {[%clk 0:00:21.4]} 31... Kc8
{[%clk 0:00:14.2]} 32. Re8 {[%clk 0:00:14.9]} 32... Qc6 {[%clk 0:00:04.6]} 33.
Rxd8+ {[%clk 0:00:09]} 33... Kxd8 {[%clk 0:00:05.5]} 34. Qe5 {[%clk 0:00:09.4]}
34... Qd7 {[%clk 0:00:04.3]} 35. Qh8+ {[%clk 0:00:08.6]} 35... Qe8 {[%clk
0:00:02.2]} 36. Qxe8# {[%clk 0:00:08.8]} 1-0

[Event "*** Titled Tuesday Blitz"]
[Site "Chess.com"]
[Date "2020.04.21"]
[Round "8"]
[White "Keks2017"]
[Black "hongnhung1234"]
[Result "1-0"]
[WhiteElo "2390"]
[BlackElo "2165"]
[TimeControl "180+1"]
[EndTime "11:38:54 PDT"]
[Termination "Keks2017 won by checkmate"]

1. e4 {[%clk 0:02:58.4]} 1... c5 {[%clk 0:02:59.7]} 2. d3 {[%clk 0:02:57.6]}
2... e6 {[%clk 0:02:58.2]} 3. g3 {[%clk 0:02:57.5]} 3... Nc6 {[%clk 0:02:57.7]}
4. Bg2 {[%clk 0:02:57.4]} 4... Nge7 {[%clk 0:02:55.9]} 5. f4 {[%clk 0:02:56.9]}
5... g6 {[%clk 0:02:56]} 6. Nf3 {[%clk 0:02:56.8]} 6... Bg7 {[%clk 0:02:56.5]}
7. O-O {[%clk 0:02:56.7]} 7... O-O {[%clk 0:02:57.1]} 8. c3 {[%clk 0:02:56.5]}
8... d5 {[%clk 0:02:57.6]} 9. Qe2 {[%clk 0:02:56.1]} 9... b6 {[%clk 0:02:55.6]}
10. Re1 {[%clk 0:02:55.5]} 10... Ba6 {[%clk 0:02:52.7]} 11. e5 {[%clk
0:02:54.5]} 11... Bb7 {[%clk 0:02:42.3]} 12. Nbd2 {[%clk 0:02:53.8]} 12... b5
{[%clk 0:02:42.2]} 13. Nf1 {[%clk 0:02:53.4]} 13... b4 {[%clk 0:02:42.3]} 14.
Be3 {[%clk 0:02:52.6]} 14... bxc3 {[%clk 0:02:32.7]} 15. bxc3 {[%clk 0:02:50.9]}
15... d4 {[%clk 0:02:26.2]} 16. cxd4 {[%clk 0:02:48.5]} 16... cxd4 {[%clk
0:02:26.6]} 17. Bf2 {[%clk 0:02:47.9]} 17... Rb8 {[%clk 0:02:18.3]} 18. N1d2
{[%clk 0:02:38]} 18... Nd5 {[%clk 0:02:05.8]} 19. Nc4 {[%clk 0:02:34]} 19... Ba6
{[%clk 0:02:00.9]} 20. Rec1 {[%clk 0:02:27.8]} 20... Nc3 {[%clk 0:01:56.2]} 21.
Qd2 {[%clk 0:02:27.1]} 21... Bxc4 {[%clk 0:01:53.5]} 22. dxc4 {[%clk 0:02:26.3]}
22... Ne4 {[%clk 0:01:53.9]} 23. Qe1 {[%clk 0:02:22.9]} 23... Nxf2 {[%clk
0:01:53]} 24. Qxf2 {[%clk 0:02:22.6]} 24... Qb6 {[%clk 0:01:49.4]} 25. c5 {[%clk
0:02:21.7]} 25... Qb2 {[%clk 0:01:44.5]} 26. Ng5 {[%clk 0:02:21.4]} 26... Na5
{[%clk 0:01:39.9]} 27. Qxb2 {[%clk 0:02:11.4]} 27... Rxb2 {[%clk 0:01:40.8]} 28.
c6 {[%clk 0:02:10.8]} 28... Rc8 {[%clk 0:01:37.9]} 29. c7 {[%clk 0:02:10.5]}
29... d3 {[%clk 0:01:36]} 30. Rc5 {[%clk 0:02:04.9]} 30... Nb7 {[%clk
0:01:31.4]} 31. Rc3 {[%clk 0:02:03.7]} 31... d2 {[%clk 0:01:28.8]} 32. Rd1
{[%clk 0:02:02.9]} 32... Na5 {[%clk 0:01:19.6]} 33. Ne4 {[%clk 0:01:53.9]} 33...
Bf8 {[%clk 0:01:18]} 34. Nd6 {[%clk 0:01:47.9]} 34... Rxc7 {[%clk 0:01:01.8]}
35. Rxc7 {[%clk 0:01:45.5]} 35... Rxa2 {[%clk 0:01:01.9]} 36. Rxa7 {[%clk
0:01:40.1]} 36... g5 {[%clk 0:00:56.2]} 37. fxg5 {[%clk 0:01:34.7]} 37... h6
{[%clk 0:00:52.5]} 38. g6 {[%clk 0:01:31.6]} 38... fxg6 {[%clk 0:00:49.5]} 39.
Bh3 {[%clk 0:01:31.4]} 39... Kh8 {[%clk 0:00:42.5]} 40. Bxe6 {[%clk 0:01:27.2]}
40... Rc2 {[%clk 0:00:42.5]} 41. Rxa5 {[%clk 0:01:26.2]} 41... h5 {[%clk
0:00:40.2]} 42. Rd5 {[%clk 0:01:23.2]} 42... Kg7 {[%clk 0:00:36.3]} 43. R5xd2
{[%clk 0:01:22.2]} 43... Rc5 {[%clk 0:00:36.1]} 44. Bd5 {[%clk 0:01:18.8]} 44...
g5 {[%clk 0:00:33.4]} 45. Rf1 {[%clk 0:01:15.7]} 45... g4 {[%clk 0:00:28.1]} 46.
Kg2 {[%clk 0:01:15.4]} 46... Ra5 {[%clk 0:00:21.1]} 47. Rf7+ {[%clk 0:01:11.9]}
47... Kg8 {[%clk 0:00:21]} 48. Ra7+ {[%clk 0:01:10.3]} 48... Rxd5 {[%clk
0:00:20.8]} 49. Rxd5 {[%clk 0:01:08.6]} 49... h4 {[%clk 0:00:21.5]} 50. gxh4
{[%clk 0:01:06.7]} 50... g3 {[%clk 0:00:21]} 51. hxg3 {[%clk 0:01:06.2]} 51...
Bg7 {[%clk 0:00:21.6]} 52. Nf5 {[%clk 0:01:05]} 52... Kh8 {[%clk 0:00:22.1]} 53.
Nxg7 {[%clk 0:01:02.3]} 53... Kh7 {[%clk 0:00:21.8]} 54. Nf5+ {[%clk 0:01:00.9]}
54... Kg6 {[%clk 0:00:21.6]} 55. e6 {[%clk 0:00:54.2]} 55... Kh5 {[%clk
0:00:19.2]} 56. e7 {[%clk 0:00:51.6]} 56... Kg4 {[%clk 0:00:19.3]} 57. Ne3#
{[%clk 0:00:49.3]} 1-0

[Event "*** Titled Tuesday Blitz"]
[Site "Chess.com"]
[Date "2020.04.21"]
[Round "8"]
[White "DinaBelenkaya"]
[Black "zajka-molotok"]
[Result "0-1"]
[WhiteElo "2228"]
[BlackElo "2410"]
[TimeControl "180+1"]
[EndTime "11:38:55 PDT"]
[Termination "zajka-molotok won on time"]

1. e4 {[%clk 0:03:00.9]} 1... e5 {[%clk 0:02:58.2]} 2. Nf3 {[%clk 0:02:59.4]}
2... Nc6 {[%clk 0:02:58]} 3. d4 {[%clk 0:02:57.2]} 3... exd4 {[%clk 0:02:56.4]}
4. Nxd4 {[%clk 0:02:57.5]} 4... Nf6 {[%clk 0:02:56.3]} 5. Nxc6 {[%clk
0:02:53.2]} 5... bxc6 {[%clk 0:02:55.9]} 6. Bd3 {[%clk 0:02:40.4]} 6... d5
{[%clk 0:02:48.9]} 7. exd5 {[%clk 0:02:35.6]} 7... cxd5 {[%clk 0:02:48.4]} 8. c4
{[%clk 0:02:32.9]} 8... Bb4+ {[%clk 0:02:44.5]} 9. Nd2 {[%clk 0:02:30.5]} 9...
O-O {[%clk 0:02:42.4]} 10. O-O {[%clk 0:02:29.9]} 10... Bd6 {[%clk 0:02:26.2]}
11. Nf3 {[%clk 0:02:13.2]} 11... Bg4 {[%clk 0:02:20.3]} 12. h3 {[%clk
0:02:06.3]} 12... Bh5 {[%clk 0:02:18.7]} 13. cxd5 {[%clk 0:02:01.5]} 13... Nxd5
{[%clk 0:02:14.7]} 14. Be4 {[%clk 0:02:01]} 14... c6 {[%clk 0:02:09.8]} 15. Qd3
{[%clk 0:01:48]} 15... Nf6 {[%clk 0:02:04.5]} 16. Bg5 {[%clk 0:01:47.3]} 16...
Rc8 {[%clk 0:01:52.6]} 17. Rfd1 {[%clk 0:01:45]} 17... Be7 {[%clk 0:01:46.7]}
18. Bxh7+ {[%clk 0:01:36.1]} 18... Nxh7 {[%clk 0:01:43]} 19. Qe2 {[%clk
0:01:02.4]} 19... Nxg5 {[%clk 0:01:30]} 20. Rxd8 {[%clk 0:00:59.1]} 20... Nxf3+
{[%clk 0:01:29.8]} 21. gxf3 {[%clk 0:00:56.5]} 21... Bxd8 {[%clk 0:01:29.8]} 22.
Qe5 {[%clk 0:00:48]} 22... Bg6 {[%clk 0:01:26.4]} 23. Rd1 {[%clk 0:00:45.7]}
23... Bf6 {[%clk 0:01:25.7]} 24. Qc5 {[%clk 0:00:44.2]} 24... Bxb2 {[%clk
0:01:19.3]} 25. Rd7 {[%clk 0:00:37.4]} 25... a6 {[%clk 0:01:13.8]} 26. a4 {[%clk
0:00:28.1]} 26... Rfe8 {[%clk 0:01:09.6]} 27. Rd2 {[%clk 0:00:24]} 27... Bf6
{[%clk 0:01:07.8]} 28. a5 {[%clk 0:00:22.8]} 28... Re5 {[%clk 0:01:05.1]} 29.
Qb6 {[%clk 0:00:21.6]} 29... Rg5+ {[%clk 0:01:00.3]} 30. Kf1 {[%clk 0:00:20.6]}
30... Re8 {[%clk 0:00:53.2]} 31. Qxc6 {[%clk 0:00:19.7]} 31... Re6 {[%clk
0:00:51.9]} 32. Qc8+ {[%clk 0:00:18.6]} 32... Kh7 {[%clk 0:00:50.9]} 33. h4
{[%clk 0:00:14.9]} 33... Rb5 {[%clk 0:00:48.5]} 34. Qc7 {[%clk 0:00:13.3]} 34...
Bf5 {[%clk 0:00:45.5]} 35. Kg2 {[%clk 0:00:12.4]} 35... Bg6 {[%clk 0:00:44.3]}
36. Qc8 {[%clk 0:00:03.3]} 36... Bxh4 {[%clk 0:00:40.6]} 37. Qc4 {[%clk
0:00:02.6]} 37... Rh5 {[%clk 0:00:39.1]} 38. Rd1 {[%clk 0:00:02.4]} 38... Bf6
{[%clk 0:00:38.2]} 39. Rh1 {[%clk 0:00:01.2]} 39... Rxh1 {[%clk 0:00:37.5]} 40.
Kxh1 {[%clk 0:00:02.1]} 40... Bd8 {[%clk 0:00:28.5]} 41. Qb4 {[%clk 0:00:01.4]}
41... Bg5 {[%clk 0:00:27.7]} 42. Kg2 {[%clk 0:00:01.4]} 42... Rf6 {[%clk
0:00:24.2]} 0-1

[Event "*** Titled Tuesday Blitz"]
[Site "Chess.com"]
[Date "2020.04.21"]
[Round "8"]
[White "DrVitman"]
[Black "praveenb2002"]
[Result "1-0"]
[WhiteElo "2565"]
[BlackElo "2710"]
[TimeControl "180+1"]
[EndTime "11:38:57 PDT"]
[Termination "DrVitman won by checkmate"]

1. e4 {[%clk 0:03:00.9]} 1... e5 {[%clk 0:02:56.9]} 2. Nf3 {[%clk 0:02:59.5]}
2... Nc6 {[%clk 0:02:54.9]} 3. Bb5 {[%clk 0:02:59.4]} 3... a6 {[%clk 0:02:53.3]}
4. Ba4 {[%clk 0:02:59.6]} 4... Nf6 {[%clk 0:02:50.2]} 5. Bxc6 {[%clk 0:03:00]}
5... dxc6 {[%clk 0:02:49.6]} 6. d3 {[%clk 0:03:00.5]} 6... Bd6 {[%clk
0:02:48.5]} 7. h3 {[%clk 0:03:00.1]} 7... Nd7 {[%clk 0:02:46.1]} 8. Nbd2 {[%clk
0:02:58.5]} 8... O-O {[%clk 0:02:46.1]} 9. Qe2 {[%clk 0:02:57.9]} 9... Nc5
{[%clk 0:02:45.4]} 10. Nc4 {[%clk 0:02:56.6]} 10... Qe7 {[%clk 0:02:45.1]} 11.
Ne3 {[%clk 0:02:56.1]} 11... g6 {[%clk 0:02:40.3]} 12. Ng4 {[%clk 0:02:44.5]}
12... f6 {[%clk 0:02:35.5]} 13. Bh6 {[%clk 0:02:41.2]} 13... Re8 {[%clk
0:02:29.4]} 14. O-O-O {[%clk 0:02:40.3]} 14... Be6 {[%clk 0:02:27.2]} 15. Kb1
{[%clk 0:02:39.8]} 15... Na4 {[%clk 0:02:23.4]} 16. Bc1 {[%clk 0:02:34.9]} 16...
Bc5 {[%clk 0:02:11.6]} 17. c3 {[%clk 0:02:18.8]} 17... b5 {[%clk 0:02:02.9]} 18.
Qc2 {[%clk 0:02:05.8]} 18... Nb6 {[%clk 0:01:46.4]} 19. d4 {[%clk 0:01:51.4]}
19... Bxg4 {[%clk 0:01:36.2]} 20. hxg4 {[%clk 0:01:46.9]} 20... Bd6 {[%clk
0:01:36.2]} 21. dxe5 {[%clk 0:01:40.6]} 21... Bxe5 {[%clk 0:01:35.6]} 22. g5
{[%clk 0:01:37]} 22... Nc4 {[%clk 0:01:31.6]} 23. gxf6 {[%clk 0:01:32.6]} 23...
Bxf6 {[%clk 0:01:30.2]} 24. Rde1 {[%clk 0:01:16.5]} 24... Rad8 {[%clk
0:01:17.2]} 25. e5 {[%clk 0:01:02.9]} 25... Bg7 {[%clk 0:01:05.2]} 26. Bg5
{[%clk 0:01:01.8]} 26... Qc5 {[%clk 0:01:05.4]} 27. Bxd8 {[%clk 0:01:00.8]}
27... Rxd8 {[%clk 0:01:05.9]} 28. e6 {[%clk 0:00:43.7]} 28... b4 {[%clk
0:00:59.6]} 29. e7 {[%clk 0:00:43.3]} 29... Re8 {[%clk 0:00:59.6]} 30. Qb3
{[%clk 0:00:39.7]} 30... bxc3 {[%clk 0:00:54.2]} 31. Re4 {[%clk 0:00:36.7]}
31... Qxf2 {[%clk 0:00:23.8]} 32. Qxc4+ {[%clk 0:00:31.1]} 32... Kh8 {[%clk
0:00:24.1]} 33. Re2 {[%clk 0:00:25.8]} 33... Qb6 {[%clk 0:00:21.1]} 34. Ng5
{[%clk 0:00:21.6]} 34... h5 {[%clk 0:00:17.7]} 35. Qf7 {[%clk 0:00:09.5]} 35...
Rg8 {[%clk 0:00:08.9]} 36. Rxh5+ {[%clk 0:00:07]} 36... gxh5 {[%clk 0:00:07.6]}
37. Qxh5+ {[%clk 0:00:07.9]} 37... Bh6 {[%clk 0:00:08.2]} 38. Qxh6# {[%clk
0:00:07.5]} 1-0

[Event "*** Titled Tuesday Blitz"]
[Site "Chess.com"]
[Date "2020.04.21"]
[Round "8"]
[White "hellokostya"]
[Black "LionTheLeon_06"]
[Result "1-0"]
[WhiteElo "2489"]
[BlackElo "2610"]
[TimeControl "180+1"]
[EndTime "11:38:57 PDT"]
[Termination "hellokostya won by resignation"]

1. d4 {[%clk 0:03:00.9]} 1... Nf6 {[%clk 0:02:59.7]} 2. c4 {[%clk 0:02:56]} 2...
e6 {[%clk 0:02:59.9]} 3. Nf3 {[%clk 0:02:55.8]} 3... b6 {[%clk 0:02:59.2]} 4. g3
{[%clk 0:02:55.3]} 4... Bb7 {[%clk 0:02:59.1]} 5. Bg2 {[%clk 0:02:55.2]} 5...
Be7 {[%clk 0:02:59.3]} 6. O-O {[%clk 0:02:55.4]} 6... O-O {[%clk 0:02:59.4]} 7.
Re1 {[%clk 0:02:55.1]} 7... Na6 {[%clk 0:02:58.7]} 8. Bf4 {[%clk 0:02:53.3]}
8... d6 {[%clk 0:02:52.7]} 9. Nc3 {[%clk 0:02:43.7]} 9... Ne4 {[%clk 0:02:49.4]}
10. Qc2 {[%clk 0:02:38.5]} 10... Nxc3 {[%clk 0:02:44]} 11. bxc3 {[%clk
0:02:38.1]} 11... g6 {[%clk 0:02:28.1]} 12. h4 {[%clk 0:02:34.9]} 12... c5
{[%clk 0:02:26.3]} 13. h5 {[%clk 0:02:03.7]} 13... Rc8 {[%clk 0:02:07.9]} 14.
hxg6 {[%clk 0:01:47.4]} 14... hxg6 {[%clk 0:02:02.5]} 15. Bh3 {[%clk 0:01:47.3]}
15... Nb8 {[%clk 0:01:41.2]} 16. Bxe6 {[%clk 0:01:41.8]} 16... Kg7 {[%clk
0:01:12.9]} 17. Bxc8 {[%clk 0:01:37.5]} 17... Bxc8 {[%clk 0:01:13]} 18. Kg2
{[%clk 0:01:34.9]} 18... g5 {[%clk 0:00:57.6]} 19. Rh1 {[%clk 0:01:30.5]} 19...
f5 {[%clk 0:00:57.5]} 20. Be3 {[%clk 0:01:23.5]} 20... g4 {[%clk 0:00:53.9]} 21.
Bh6+ {[%clk 0:01:22.3]} 21... Kg8 {[%clk 0:00:47.2]} 22. Bxf8 {[%clk 0:01:02.2]}
22... gxf3+ {[%clk 0:00:46.1]} 23. exf3 {[%clk 0:01:03.1]} 23... Bxf8 {[%clk
0:00:45.4]} 24. Rh5 {[%clk 0:00:52.3]} 24... Qf6 {[%clk 0:00:42.2]} 25. Rah1
{[%clk 0:00:49.7]} 25... Bg7 {[%clk 0:00:41.8]} 26. Qe2 {[%clk 0:00:37.6]} 26...
Bd7 {[%clk 0:00:38.7]} 27. f4 {[%clk 0:00:30]} 27... Nc6 {[%clk 0:00:37]} 28.
Rg5 {[%clk 0:00:29.1]} 28... Nd8 {[%clk 0:00:33.5]} 29. Qh5 {[%clk 0:00:24]}
29... Kf8 {[%clk 0:00:20.3]} 30. Re1 {[%clk 0:00:18.6]} 30... cxd4 {[%clk
0:00:18]} 31. Rg6 {[%clk 0:00:18.4]} 31... Qf7 {[%clk 0:00:15.8]} 32. cxd4
{[%clk 0:00:17.7]} 32... Qxc4 {[%clk 0:00:13.6]} 33. Qg5 {[%clk 0:00:12.2]}
33... Bc6+ {[%clk 0:00:09.7]} 34. Kh2 {[%clk 0:00:12]} 34... Ne6 {[%clk
0:00:06.7]} 35. Rgxe6 {[%clk 0:00:07.5]} 35... Qd5 {[%clk 0:00:06.2]} 36. Re8+
{[%clk 0:00:03.1]} 36... Bxe8 {[%clk 0:00:05.9]} 37. Qe7+ {[%clk 0:00:03.3]}
37... Kg8 {[%clk 0:00:06.5]} 38. Qxe8+ {[%clk 0:00:04.2]} 38... Kh7 {[%clk
0:00:07.1]} 39. Qh5+ {[%clk 0:00:04.6]} 39... Kg8 {[%clk 0:00:07.7]} 40. Re8+
{[%clk 0:00:04.7]} 40... Bf8 {[%clk 0:00:08.3]} 41. Qg6+ {[%clk 0:00:04.7]} 1-0